Cogmind - Beta 17 @@@ ROGUE MODE // 2026.07.04 @ 23:30:17 Player: kite Result: Self-destructed Performance ------------- Evolutions (0) 0 Regions Visited (4) 800 Robots Destroyed (30) 150 Value Destroyed (703) 703 Prototype IDs (23) 460 Alien Tech Used (0) 0 Bonus (300) 300 TOTAL SCORE: 2413 Bonus ------- Aligned with FarCom 300 Cogmind --------- Core Integrity 4/250 Matter 128/300 Energy 100/100 System Corruption 0% Temperature Cool (0) Movement Walking (120) Location -9/Mines Parts ------- > --- POWER (1) -------- (None) > --- PROPULSION (2) --- Aluminum Leg > --- UTILITY (2) ------ Improved Heat Sink Small Storage Unit > --- WEAPON (2) ------- (None) > --- INVENTORY (8) ---- Aluminum Leg Aluminum Leg High-capacity Storage Unit Trap Reconfigurator Autogun Autogun EMP Blaster Grenade Launcher Peak State ------------ > --- POWER ------------ Light Nuclear Core > --- PROPULSION ------- Light Treads Light Treads > --- UTILITY ---------- Improved Heat Sink Small Storage Unit > --- WEAPON ----------- Autogun Autogun > --- INVENTORY -------- Ion Engine Aluminum Leg Aluminum Leg Aluminum Leg High-capacity Storage Unit Light Assault Rifle Autogun Autogun [Rating: 14] Favorites ----------- Power Ion Engine Engine Ion Engine Power Core Light Nuclear Core Propulsion Aluminum Leg Treads Light Treads Leg Aluminum Leg Utility Small Storage Unit Device Improved Heat Sink Storage Small Storage Unit Weapon Autogun Ballistic Gun Autogun Launcher Grenade Launcher Build | -11 -10 -10 -10 -9 ------- Run | Yrd Mat Min Exi Min Slots Evolved . | . . . . . Power . | . . . . . Propulsion . | . . . . . Utility . | . . . . . Weapon . | . . . . . Parts Attached 22 | 6 7 7 1 1 Power 5 | 1 2 2 . . Engine 4 | 1 1 2 . . Core 1 | . 1 . . . Reactor . | . . . . . Propulsion 7 | 2 2 3 . . Treads 2 | 2 . . . . Leg 5 | . 2 3 . . Wheel . | . . . . . Hover . | . . . . . Flight . | . . . . . Utility 4 | 1 1 2 . . Device 3 | . 1 2 . . Storage 1 | 1 . . . . Processor . | . . . . . Hackware . | . . . . . Protection . | . . . . . Artifact . | . . . . . Weapon 6 | 2 2 . 1 1 Energy Gun . | . . . . . Energy Cannon . | . . . . . Ballistic Gun 5 | 2 2 . 1 . Ballistic Cannon . | . . . . . Launcher 1 | . . . . 1 Special Weapon . | . . . . . Impact Weapon . | . . . . . Slashing Weapon . | . . . . . Piercing Weapon . | . . . . . Special Melee Weapon . | . . . . . Unidentified Prototypes . | . . . . . Parts Lost 9 | . 2 3 . 4 Power 4 | . 1 2 . 1 Propulsion 1 | . . . . 1 Utility 1 | . . 1 . . Weapon 3 | . 1 . . 2 Highest Loss Streak 4 | . 1 2 . 4 To Critical Strikes . | . . . . . Average Backups 6 | 1 4 7 8 8 Power . | . . . . . Propulsion 2 | . 2 2 3 2 Utility . | . . 1 1 2 Weapon 2 | . 1 4 3 3 Tool/Special . | . . . . . Unused Backups 8 | . . 2 1 5 Power . | . . . . . Propulsion 3 | . . 2 . 1 Utility 2 | . . . . 2 Weapon 3 | . . . 1 2 Tool/Special . | . . . . . Average Slot Usage (%) 94 | . 87 98 100 94 Engine 9 | . 8 9 14 12 Core 3 | . 5 4 . . Treads 9 | . 25 . . . Leg 18 | . 2 28 28 26 Device 10 | . 5 13 14 14 Storage 14 | . 14 14 14 14 Ballistic Gun 26 | . 24 28 28 24 Peak Build Rating 14 | 6 14 14 12 12 Average Rating 10 | 4 8 12 12 11 On Entrance 8 | . 6 14 12 12 Avg Prop Armor Cover (%) . | . . . . . Naked Turns . | . . . . . Heaviest Build 17 | 12 17 17 17 17 Greatest Support 40 | 40 40 20 20 20 Greatest Overweight (x) . | . . . . . Average Overweight (x) . | . . . . . Largest Inventory Capacity 8 | 8 8 8 8 8 Average Capacity 7 | 7 8 8 8 8 Most Carried 8 | 3 8 8 8 8 Average Carried 6 | 1 4 7 7 7 Final Capacity 8 | 8 8 8 8 8 Final Carried 8 | 3 8 8 8 8 Class Distribution -------------------- 74% | Mutant 25% | Scavenger-Mutant Dominant Class ---------------- Mutant | -10/Materials Mutant | -10/Mines Scavenger-Mutant | -10/Exiles Scavenger-Mutant | -9/Mines Resources | -11 -10 -10 -10 -9 ----------- Run | Yrd Mat Min Exi Min Matter Collected 771 | 78 326 367 . . Remotely . | . . . . . Salvage Created 1028 | . 575 414 . 39 Parts 55 | . 32 23 . . Haulers Intercepted 1 | . 1 . . . Recyclers Shooed . | . . . . . Parts Field Recycled . | . . . . . Retrieved Matter . | . . . . . Parts Self-Destructed . | . . . . . Prevented . | . . . . . Parts Restored . | . . . . . Kills | -11 -10 -10 -10 -9 ------- Run | Yrd Mat Min Exi Min Combat Hostiles Destroyed 32 | . 12 14 . 6 Melee 1 | . 1 . . . Guns 27 | . 11 14 . 2 AOE 4 | . . . . 4 Classes Destroyed 7 | . 6 . . 1 Tunneler 1 | . 1 . . . Hauler 1 | . 1 . . . Recycler 1 | . 1 . . . Operator 1 | . 1 . . . Swarmer 11 | . 3 8 . . Grunt 15 | . 9 6 . . Assembled 6 | . . . . 6 Best Kill Streak 6 | . 6 6 . 6 Combat Bots Only 6 | . 5 6 . 6 Max Kills in Single Turn 2 | . 2 2 . 2 Gunslinging 1 | . . 1 . . Exploded 2 | . . . . 2 Melee 1 | . 1 . . . Uniques/NPCs Destroyed . | . . . . . Combat | -11 -10 -10 -10 -9 -------- Run | Yrd Mat Min Exi Min Hostile Shots Fired 181 | . 80 65 . 36 Missed 53 | . 24 20 . 9 Hits 128 | . 56 45 . 27 Melee 2 | . . . . 2 Projectile 126 | . 56 45 . 25 AOE 4 | . . . . 4 Critical Strikes 5 | . 2 2 . 1 Damage Taken 1536 | . 648 411 . 477 Core 246 | . 102 44 . 100 Absorbed by Shields . | . . . . . Core Remaining (%) 100 | 100 . . . . Volleys Fired 129 | . 82 34 . 13 Largest 2 | . 2 2 . 2 Hottest 46 | . 46 46 . 46 Shots Fired 234 | . 142 68 . 24 Gun 232 | . 142 68 . 22 Cannon . | . . . . . Launcher 2 | . . . . 2 Special . | . . . . . Kinetic 232 | . 142 68 . 22 Thermal . | . . . . . Explosive 2 | . . . . 2 Electromagnetic . | . . . . . Robot Hit Streak 9 | . 9 7 . 3 Robot Miss Streak 8 | . 8 7 . 2 Penetration Max . | . . . . . Secondary Targets 6 | . 4 2 . . Max Gunslinging Chain 1 | . 1 1 . . Shots Hit Robots 130 | . 79 39 . 12 Core Hits 62 | . 32 18 . 12 Critical Kills . | . . . . . Critical Parts Destroyed . | . . . . . Critical Strikes . | . . . . . Melee Attacks . | . . . . . Impact . | . . . . . Slashing . | . . . . . Piercing . | . . . . . Sneak Attacks . | . . . . . Combat Hostiles . | . . . . . Follow-up Attacks . | . . . . . Damage Inflicted 1700 | . 750 566 . 384 Guns 1529 | . 750 566 . 213 Cannons . | . . . . . Explosions 171 | . . . . 171 Melee . | . . . . . Ramming . | . . . . . Kinetic 1529 | . 750 566 . 213 Thermal . | . . . . . Explosive 171 | . . . . 171 Electromagnetic . | . . . . . Impact . | . . . . . Slashing . | . . . . . Piercing . | . . . . . Highest Corruption . | . . . . . Average Corruption . | . . . . . Corruption Purged . | . . . . . Corruption Blocked . | . . . . . Overload Shots . | . . . . . Overflow Damage . | . . . . . Projectiles . | . . . . . Explosions . | . . . . . Melee . | . . . . . Knockbacks . | . . . . . Impact . | . . . . . Kinetic . | . . . . . Secondary . | . . . . . Self-Inflicted Damage 11 | . . . . 11 Shots 1 | . . . . 1 Rammed . | . . . . . Targets Rammed 1 | . 1 . . . Kicked . | . . . . . Crushed 1 | . 1 . . . Highest Temperature 27 | . 27 . . 9 Average Temperature 8 | . 9 . . 7 Received Heat Transfer 491 | . 336 75 . 80 Siege Activations . | . . . . . Martial Activations . | . . . . . Shielding Activations . | . . . . . Robots Disrupted . | . . . . . Combat Hostiles . | . . . . . Robots Corrupted . | . . . . . Combat Hostiles . | . . . . . Parts Fried . | . . . . . Impact Corruptions . | . . . . . Robots Melted . | . . . . . Combat Hostiles . | . . . . . Parts Melted . | . . . . . Heat Transferred . | . . . . . Parts Sabotaged . | . . . . . Parts Stolen . | . . . . . Parts Stripped . | . . . . . Power Chain Reactions . | . . . . . Alert | -11 -10 -10 -10 -9 ------- Run | Yrd Mat Min Exi Min Maximum Alert Level . | . . . . . Low Security (%) 100 | 100 100 100 . 100 Level 1 . | . . . . . Level 2 . | . . . . . Level 3 . | . . . . . Level 4 . | . . . . . Level 5 . | . . . . . High Security . | . . . . . Max Security . | . . . . . Peak Influence 164 | . 134 164 . 11 Initial 9 | . . 9 . . Average 47 | . 60 46 . . Influence Increases 743 | . 327 405 . 11 Destroy 0b10 Robot/C 520 | . 240 280 . . Destroy 0b10 Robot/NC 20 | . 20 . . . Destroy Leader 102 | . 52 50 . . Destroy Structure 11 | . . . . 11 Lose Combat Pursuer 90 | . 15 75 . . Influence Decreases 743 | . 301 299 132 11 Entered New Map 149 | . . 17 132 . Time Decay 533 | . 281 252 . . Lost Part 61 | . 20 30 . 11 Squads Dispatched 4 | . 3 1 . . Investigation 1 | . 1 . . . Extermination . | . . . . . Reinforcement 2 | . 2 . . . Assault 1 | . . 1 . . Garrison . | . . . . . Intercept . | . . . . . Searches Triggered . | . . . . . Construction Impeded . | . . . . . Haulers Reinforced . | . . . . . Active Scanning Responses . | . . . . . Cargo Convoy Interrupts . | . . . . . Stealth | -11 -10 -10 -10 -9 --------- Run | Yrd Mat Min Exi Min Distress Signals 2 | . 2 . . . Communications Jammed . | . . . . . Distress Signals . | . . . . . Times Spotted 57 | . 21 20 . 16 Peak Tracking Total 16 | . 5 6 . 16 Tactical Retreats 5 | . 1 2 . 2 Traps | -11 -10 -10 -10 -9 ------- Run | Yrd Mat Min Exi Min Traps Triggered 1 | . 1 . . . Indirectly . | . . . . . Trap Hack Attempts . | . . . . . Triggered . | . . . . . Disarmed . | . . . . . Reprogrammed . | . . . . . Reused . | . . . . . Traps Extracted . | . . . . . Installed . | . . . . . Triggered . | . . . . . Machines | -11 -10 -10 -10 -9 ---------- Run | Yrd Mat Min Exi Min Machines Disabled . | . . . . . Max in Single Turn . | . . . . . Machines Repaired . | . . . . . Machines Dismantled . | . . . . . Machines Sabotaged . | . . . . . Overloaded Fab Kills . | . . . . . Hacking | -11 -10 -10 -10 -9 --------- Run | Yrd Mat Min Exi Min Machines Accessed 3 | . . 1 2 . Terminals 1 | . . 1 . . Fabricators . | . . . . . Repair Stations . | . . . . . Recycling Units . | . . . . . Scanalyzers . | . . . . . Garrison Access . | . . . . . Total Hacks 7 | . . 2 5 . Successful 5 | . . . 5 . Failed 2 | . . 2 . . Catastrophic . | . . . . . Database Lockouts . | . . . . . Manual 3 | . . 2 1 . Terminals 2 | . . 2 . . Fabricators . | . . . . . Repair Stations . | . . . . . Recycling Units . | . . . . . Scanalyzers . | . . . . . Garrison Access . | . . . . . Terminal Hacks 5 | . . . 5 . Record 4 | . . . 4 . Proto ID Catalog 1 | . . . 1 . Fabricator Hacks . | . . . . . Repair Station Hacks . | . . . . . Recycling Unit Hacks . | . . . . . Scanalyzer . | . . . . . Garrison Access Hacks . | . . . . . Unauthorized Hacks . | . . . . . Terminals . | . . . . . Fabricators . | . . . . . Repair Stations . | . . . . . Recycling Units . | . . . . . Scanalyzers . | . . . . . Garrison Access . | . . . . . Data Cores Recovered . | . . . . . Used . | . . . . . Hacking Detections 1 | . . 1 . . Full Trace Events . | . . . . . Feedback Events . | . . . . . Feedback Blocked . | . . . . . Robot Schematics Acquired . | . . . . . Robots Built . | . . . . . Authchips . | . . . . . Time . | . . . . . Total Robot Build Rating . | . . . . . Part Schematics Acquired . | . . . . . Parts Built . | . . . . . Authchips . | . . . . . Time . | . . . . . Total Part Build Rating . | . . . . . Part Studies Acquired . | . . . . . Parts Repaired . | . . . . . Time . | . . . . . Parts Recycled . | . . . . . Recycled Matter . | . . . . . Retrieved Matter . | . . . . . Retrieved Components . | . . . . . Parts Scanalyzed . | . . . . . Part Schematics Acquired . | . . . . . Parts Damaged . | . . . . . Bothacking | -11 -10 -10 -10 -9 ------------ Run | Yrd Mat Min Exi Min Used RIF Installer . | . . . . . Robots Hacked . | . . . . . Non-combat . | . . . . . Combat . | . . . . . Robot Hacks Applied . | . . . . . Relay Couplers Released . | . . . . . Fabnet Peak Effective % . | . . . . . Robots Rewired . | . . . . . Allies Hacked . | . . . . . Hacks Repelled . | . . . . . Allies | -11 -10 -10 -10 -9 -------- Run | Yrd Mat Min Exi Min Total Allies 1 | . . 1 . . Largest Group 1 | . . 1 . . Highest-Rated Group 31 | . . 31 . . Highest-Rated Ally 31 | . . 31 . . Total Orders . | . . . . . Ally Attacks 4 | . . 4 . . Total Damage 42 | . . 42 . . Kills . | . . . . . Allies Corrupted . | . . . . . Allies Melted . | . . . . . Intel | -11 -10 -10 -10 -9 ------- Run | Yrd Mat Min Exi Min Active Infowar (turns) . | . . . . . Robot Analysis Total . | . . . . . Derelict Logs Recovered 2 | . . 2 . . Drone Launches . | . . . . . Drone Recoveries . | . . . . . Exploration | -11 -10 -10 -10 -9 ------------- Run | Yrd Mat Min Exi Min Turns Passed 2070 | 93 736 795 348 98 Spaces Moved 1196 | 53 327 577 209 30 Core 2 | 2 . . . . Treads 317 | 51 266 . . . Legs 877 | . 61 577 209 30 Wheels . | . . . . . Hover . | . . . . . Flight . | . . . . . Fastest Speed 50 | 50 120 120 120 120 Average Speed 130 | 155 152 120 120 120 Slowest Speed 160 | 160 160 120 120 120 Overloaded Moves . | . . . . . Propulsion Burnouts . | . . . . . Robots Hopped . | . . . . . Potential Cave-ins . | . . . . . Cave-ins Triggered . | . . . . . Exploration Rate (%) 40 | 5 45 86 59 8 Regions Visited 4 Branch Regions 3 Pre-discovered Areas 3 | . . 2 1 . Known Exits Taken . | . . . . . Unknown Exits Taken 4 | 1 1 1 1 . Scrap Searched . | . . . . . Spaces Dug . | . . . . . Terrain Destroyed 13 | . . . . 13 Melee . | . . . . . Projectile . | . . . . . AOE 13 | . . . . 13 Terrain Rammed . | . . . . . Walls Destroyed . | . . . . . Machines Disabled . | . . . . . Actions | -11 -10 -10 -10 -9 --------- Run | Yrd Mat Min Exi Min Total 1515 | 61 450 627 306 71 Wait 141 | . 22 . 95 24 Move 1192 | 52 326 576 208 30 Hop . | . . . . . Pick Up 16 | 3 8 3 1 1 Fast Attach 11 | 6 2 3 . . Attach 3 | . 3 . . . Detach . | . . . . . Swap 9 | . 2 4 1 2 Drop 13 | . 4 7 1 1 Fire 129 | . 82 34 . 13 Melee . | . . . . . Ram . | . . . . . Kick . | . . . . . Crush 1 | . 1 . . . Escape Stasis . | . . . . . Rewire . | . . . . . Trap . | . . . . . Miscellaneous . | . . . . . Route ------- -11/Scrapyard -10/Materials (discovered 2 exits: [*Mat] / *Min) -10/Mines (discovered 3 exits: [*Mat x2] / *Exi) -10/Exiles -9/Mines History --------- Turn | Location | Event 6 | -11/Scrapyard | Discovered new exit (range 15) 94 | -11/Scrapyard | Entered Materials 96 | -10/Materials | Discovered new exit (range 16) 304 | -10/Materials | Build established: Mutant 453 | -10/Materials | Discovered new exit (range 15) 830 | -10/Materials | Entered Mines 889 | -10/Mines | Discovered new exit (range 11) 1080 | -10/Mines | Core integrity fell below 50% 1298 | -10/Mines | Learned location of Recycling (-8) 1315 | -10/Mines | Discovered new exit (range 7) 1443 | -10/Mines | Met a Derelict testing a Signal Generator 1461 | -10/Mines | Learned location of Storage (-8) 1620 | -10/Mines | Deemed a non-threat by the Exiles lab entrance 1620 | -10/Mines | Discovered new exit (range 5) 1625 | -10/Mines | Entered Exiles 1655 | -10/Exiles | Met 8R-AWN 1676 | -10/Exiles | Met EX-HEX 1709 | -10/Exiles | Met EX-BIN 1724 | -10/Exiles | Aligned with FarCom system 1725 | -10/Exiles | Given EX-Vault access code 1753 | -10/Exiles | Opened EX-Vault 1762 | -10/Exiles | Found Trap Reconfigurator 1787 | -10/Exiles | Warned to stay clear of 0b10 Research branches 1805 | -10/Exiles | Exiles lab attacked by MAIN.C 1830 | -10/Exiles | Learned location of Zion (-6) 1839 | -10/Exiles | Build established: Scavenger-Mutant 1866 | -10/Exiles | Discovered new exit (range 11) 1973 | -10/Exiles | Left Exiles lab with Trap Reconfigurator 1973 | -10/Exiles | Entered Mines 1974 | -9/Mines | Assembled infested the area 1987 | -9/Mines | YI-UF0 nonchalantly dropped a Grenade Launcher on the ground 2068 | -9/Mines | Core integrity fell below 20% 2071 | -9/Mines | Self-destructed Last Messages --------------- 02038_ YI-UF0: "BOOM!" 02038_ as-52247 destroyed. 02038_ as-14548 destroyed. 02038_ as-94443 destroyed. 02038_ YI-UF0: "BOOM!" 02038_ J5-HVA destroyed. 02040_ Destroyed Asb. Hover Unit. 02043_ Knocked back. 02045_ Destroyed Asb. Hover Unit. 02045_ as-45797 destroyed. 02051_ as-16486 destroyed. 02058_ The unstable cave ceiling collapses. 02060_ as-73968 destroyed. 02060_ as-73174 destroyed. 02062_ as-08086 destroyed. 02062_ as-20784 destroyed. 02067_ The unstable cave ceiling collapses. 02067_ Aluminum Leg destroyed. 02069_ Ion Engine destroyed. 02069_ Autogun destroyed. Map ----- +----------------------------------------------------+ | | | | | | | | | | | | | | | | | | | | | ?????????????????????????????????????????????????? | | ?????????????????????????????????????????????????? | | ??????????????????######?????????????????????????? | | ????????????????? ##???????????????????????? | | ?????????????????? #???????????????????????? | | ?????????????????? ##??????????????????????? | | ??????????????????? ??????????????????????? | | ???????????????????# ???????????????????????? | | ???????????????????# ???????????????????????? | | ???????????????????? $ #???#???????????????????? | | ????????????????????? ##? #???????????????????? | | ?????????????????????# ## #???????????????????? | | ?????????????????????# #???????????????????? | | ?????????????????????# ######??????????????? | | ???????????????????### ???????????????? | | ???????????????????# @ #????????????????????? | | ??????????????????# #????????????????????? | | ?????????????????## = #????????????????????? | | ??????????# g # #????????????????????? | | ????????#### ?###????????????????????? | | ????# =%a ###????????????????????????? | | ????????# # #??????????????????????????? | | ?????????# # #####???????????????????????????? | | ????????# #?????????????????????????????????? | | ???????? #???????????????????????????????????? | | ?????????????????????????????????????????????????? | | ?????????????????????????????????????????????????? | | ?????????????????????????????????????????????????? | | ?????????????????????????????????????????????????? | | ?????????????????????????????????????????????????? | | ?????????????????????????????????????????????????? | | ?????????????????????????????????????????????????? | | ?????????????????????????????????????????????????? | | ?????????????????????????????????????????????????? | | ?????????????????????????????????????????????????? | | ?????????????????????????????????????????????????? | | ?????????????????????????????????????????????????? | | ?????????????????????????????????????????????????? | | ?????????????????????????????????????????????????? | | ?????????????????????????????????????????????????? | +----------------------------------------------------+ Best States ------------- Heat Dissipation 39 Energy Generation 14 Energy Capacity 250 Matter Stores 266 Matter Capacity 300 Sight Range 16 Terrain Scan Density 10 Evasion (%) 55 Recoil Reduction 2 Item Schematics ----------------- None Robot Schematics ------------------ None Fabricated ------------ Nothing Repaired ---------- Nothing Studied --------- None Alien Tech Used ----------------- None Achievements -------------- None Challenges ------------ None Game ------ Seed NetworkedPointDesublimator Manual? 0 Play Time 00:12:51 Cumulative 418.7 hours Start 2026.07.04 @ 23:09:14 End 2026.07.04 @ 23:30:17 Sessions 1 Manual Loads 0 Difficulty Rogue Special Mode None Game No. 381 Rogue 381 Adventurer 0 Explorer 0 Win Type - Total 11 Types 7/0/2/1/0/0/0/0/0/1 Lore% 61 Gallery% 68 Achievement% 64 Wizard Run 0 Options --------- Layout 1 ASCII 0 Keyboard 0 Movement Mouse Keybinds 0 Fullscreen 2 Font 24/Smallcaps Map View 50x35 Zoom Use 42% Tactical HUD 1 Map Filters NONE Filters NONE Steam 1 RUN: 5cb29659-428d-429f-9671-71bf7bf43f00